[Event "Czech Open Rapid G1 2024"]
[Site "Pardubice"]
[Date "2024.07.17"]
[Round "3.30"]
[White "Sichrovsky, Tomas"]
[Black "Rut, Vojtech"]
[Result "1-0"]
[Annotator "RC"]
[ECO "A59"]
[WhiteElo "1933"]
[BlackElo "2028"]
[PlyCount "75"]
[EventDate "2024.07.16"]
[EventType "swiss"]
[EventCountry "CZE"]
[SourceTitle "playchess.com"]
[Source "ChessBase"]
[SourceQuality "1"]
[TimeControl "1200+10"]

1. d4 {[%emt 0:00:02]} Nf6 {[%emt 0:00:02]} 2. c4 {[%emt 0:00:02]} c5 {[%emt 0:00:10]} 3. d5 {[%emt 0:00:01]} b5 {[%emt 0:00:06]} 4. cxb5 {[%emt 0:00:01]} a6 {[%emt 0:00:04]} 5. bxa6 {[%emt 0:00:01]} Bxa6 {[%emt 0:00:06]} 6. Nc3 {[%emt 0:00:03]} d6 {[%emt 0:00:22]} 7. Nf3 {[%emt 0:00:02]} g6 {[%emt 0:00:07]} 8. e4 {[%emt 0:00:03]} Bxf1 {[%emt 0:00:09]} 9. Kxf1 {[%emt 0:00:01]} Bg7 {[%emt 0:00:09]} 10. g3 {[%emt 0:00:02]} O-O {[%emt 0:00:07]} 11. Kg2 {[%emt 0:00:01]} Nfd7 {[%emt 0:01:30]} 12. a4 {[%emt 0:00:14]} Na6 {[%emt 0:01:17]} 13. Bd2 {[%emt 0:05:13]} Nb6 {[%emt 0:01:52]} 14. Qb3 {[%emt 0:02:02]} Qc7 {[%emt 0:03:46]} 15. Rhb1 {[%emt 0:00:44]} Rfb8 {[%emt 0:00:13]} 16. Nb5 {[%emt 0:00:58]} Qd7 {[%emt 0:00:29]} 17. Bc3 {[%emt 0:01:09]} f6 {[%emt 0:02:15]} 18. Nd2 {[%emt 0:02:49]} Nxa4 {[%emt 0:00:47]} 19. Qxa4 {[%emt 0:00:08]} Rxb5 {[%emt 0:00:29]} 20. Nc4 {[%emt 0:00:33]} Nc7 {[%emt 0:02:11]} 21. Qc2 {[%emt 0:00:01]} Qc8 {[%emt 0:00:10]} 22. f4 {[%emt 0:00:11]} Qb7 {[%emt 0:01:50]} 23. Na5 {[%emt 0:00:41]} Raxa5 {[%emt 0:01:37]} 24. Rxa5 {[%emt 0:00:38]} f5 {[%emt 0:00:17]} 25. Rxb5 {[%emt 0:00:07]} Nxb5 {[%emt 0:00:10]} 26. Bxg7 {[%emt 0:00:22]} Kxg7 {[%emt 0:00:04]} 27. b4 {[%emt 0:01:24]} fxe4 {[%emt 0:00:33]} 28. bxc5 {[%emt 0:03:00]} Qxd5 {[%emt 0:00:24]} 29. Rxb5 {[%emt 0:01:58]} e3+ {[%emt 0:00:12]} 30. Kg1 {[%emt 0:00:07]} e5 {[%emt 0:00:39]} 31. Rb1 {[%emt 0:01:25]} exf4 {[%emt 0:00:28]} 32. c6 {[%emt 0:00:45]} fxg3 {[%emt 0:01:38]} 33. Qc3+ {[%emt 0:00:11]} Kg8 {[%emt 0:00:20]} 34. Rb8+ {[%emt 0:00:14]} Kf7 {[%emt 0:00:02]} 35. Rb7+ {[%emt 0:00:05]} Ke6 {[%emt 0:00:22]} 36. Qxe3+ {[%emt 0:00:02]} Kf6 {[%emt 0:00:03]} 37. Qf4+ {[%emt 0:00:12]} Ke6 {[%emt 0:00:06]} 38. Qf7+ {[%emt 0:00:06]} 1-0

[Event "Czech Open Rapid G1 2024"]
[Site "Pardubice"]
[Date "2024.07.17"]
[Round "3.31"]
[White "Tesar, Jan"]
[Black "Dolensky, Milan"]
[Result "1-0"]
[Annotator "RC"]
[ECO "A45"]
[WhiteElo "1929"]
[BlackElo "1983"]
[PlyCount "73"]
[EventDate "2024.07.16"]
[EventType "swiss"]
[EventCountry "CZE"]
[SourceTitle "playchess.com"]
[Source "ChessBase"]
[SourceQuality "1"]
[TimeControl "1200+10"]

1. d4 {[%emt 0:00:02]} Nf6 {[%emt 0:00:17]} 2. Bg5 {[%emt 0:00:02]} c5 {[%emt 0:00:01]} 3. Nc3 {[%emt 0:00:03]} Qa5 {[%emt 0:00:38]} 4. Bxf6 {[%emt 0:00:26]} gxf6 {[%emt 0:00:02]} 5. d5 {[%emt 0:00:02]} Bg7 {[%emt 0:00:05]} 6. e3 {[%emt 0:01:25]} f5 {[%emt 0:00:29]} 7. Qd2 {[%emt 0:00:37]} O-O {[%emt 0:00:30]} 8. Bd3 {[%emt 0:00:06]} d6 {[%emt 0:00:02]} 9. Nge2 {[%emt 0:00:05]} e5 {[%emt 0:00:16]} 10. f3 {[%emt 0:02:52]} a6 {[%emt 0:00:01]} 11. e4 {[%emt 0:00:27]} fxe4 {[%emt 0:02:19]} 12. fxe4 {[%emt 0:00:18]} Qc7 {[%emt 0:00:07]} 13. O-O {[%emt 0:00:09]} c4 {[%emt 0:00:02]} 14. Bxc4 {[%emt 0:01:44]} Qxc4 {[%emt 0:00:01]} 15. Rf3 {[%emt 0:00:03]} Qc7 {[%emt 0:00:15]} 16. Ng3 {[%emt 0:00:22]} Bg4 {[%emt 0:00:41]} 17. Rd3 {[%emt 0:01:35]} Qe7 {[%emt 0:00:07]} 18. h3 {[%emt 0:00:14]} Bc8 {[%emt 0:00:16]} 19. Rf1 {[%emt 0:00:24]} Qh4 {[%emt 0:00:35]} 20. Qe2 {[%emt 0:00:29]} b5 {[%emt 0:02:53]} 21. Nh5 {[%emt 0:00:10]} f5 {[%emt 0:01:12]} 22. Rg3 {[%emt 0:00:40]} Ra7 {[%emt 0:00:08]} 23. Qf2 {[%emt 0:01:01]} Qxh5 {[%emt 0:00:07]} 24. Qxa7 {[%emt 0:00:10]} Nd7 {[%emt 0:00:29]} 25. exf5 {[%emt 0:01:25]} Qh6 {[%emt 0:01:24]} 26. Ne4 {[%emt 0:01:05]} Kh8 {[%emt 0:01:09]} 27. Qc7 {[%emt 0:00:50]} Qh4 {[%emt 0:04:13]} 28. Rg4 {[%emt 0:00:30]} Qe7 {[%emt 0:00:05]} 29. f6 {[%emt 0:01:24]} Bxf6 {[%emt 0:00:04]} 30. Nxf6 {[%emt 0:00:07]} Rxf6 {[%emt 0:00:14]} 31. Qxc8+ {[%emt 0:00:16]} Nf8 {[%emt 0:00:23]} 32. Rxf6 {[%emt 0:00:23]} Qxf6 {[%emt 0:00:01]} 33. Rg3 {[%emt 0:00:37]} e4 {[%emt 0:00:06]} 34. Qe8 {[%emt 0:00:40]} h6 {[%emt 0:00:55]} 35. c3 {[%emt 0:00:21]} Qf4 {[%emt 0:00:23]} 36. Rg4 {[%emt 0:00:12]} Qf6 {[%emt 0:00:18]} 37. Qxe4 {[%emt 0:00:12]} 1-0

[Event "Czech Open Rapid G1 2024"]
[Site "Pardubice"]
[Date "2024.07.17"]
[Round "3.32"]
[White "Migalko, Dmitriy"]
[Black "Dolensky, Filip"]
[Result "0-1"]
[Annotator "RC"]
[ECO "B45"]
[WhiteElo "1856"]
[BlackElo "2085"]
[PlyCount "116"]
[EventDate "2024.07.16"]
[EventType "swiss"]
[EventCountry "CZE"]
[SourceTitle "playchess.com"]
[Source "ChessBase"]
[SourceQuality "1"]
[TimeControl "1200+10"]

1. e4 {[%emt 0:00:02]} c5 {[%emt 0:00:18]} 2. Nf3 {[%emt 0:00:01]} e6 {[%emt 0:00:01]} 3. d4 {[%emt 0:00:03]} cxd4 {[%emt 0:00:01]} 4. Nxd4 {[%emt 0:00:01]} Nf6 {[%emt 0:00:01]} 5. Nc3 {[%emt 0:00:01]} Nc6 {[%emt 0:00:00]} 6. g3 {[%emt 0:00:13]} Bb4 {[%emt 0:00:08]} 7. Bg2 {[%emt 0:00:06]} O-O {[%emt 0:00:25]} 8. O-O {[%emt 0:00:14]} h6 {[%emt 0:00:18]} 9. Nxc6 {[%emt 0:00:49]} dxc6 {[%emt 0:00:53]} 10. Qf3 {[%emt 0:01:22]} e5 {[%emt 0:00:15]} 11. h3 {[%emt 0:00:51]} Qe7 {[%emt 0:00:13]} 12. a3 {[%emt 0:00:35]} Ba5 {[%emt 0:00:13]} 13. b4 {[%emt 0:01:24]} Bc7 {[%emt 0:00:10]} 14. Be3 {[%emt 0:01:30]} b6 {[%emt 0:00:01]} 15. Qe2 {[%emt 0:02:23]} Re8 {[%emt 0:04:19]} 16. f4 {[%emt 0:01:48]} a5 {[%emt 0:00:38]} 17. b5 {[%emt 0:01:56]} Bd6 {[%emt 0:04:23]} 18. a4 {[%emt 0:02:22]} Bb4 {[%emt 0:00:01]} 19. Na2 {[%emt 0:00:49]} Bc5 {[%emt 0:00:14]} 20. f5 {[%emt 0:01:46]} cxb5 {[%emt 0:00:38]} 21. axb5 {[%emt 0:00:06]} Bb7 {[%emt 0:00:08]} 22. Nc3 {[%emt 0:00:42]} Rac8 {[%emt 0:01:13]} 23. Nd5 {[%emt 0:00:49]} Bxd5 {[%emt 0:01:01]} 24. exd5 {[%emt 0:00:02]} e4 {[%emt 0:01:34]} 25. Rfd1 {[%emt 0:01:34]} Bxe3+ {[%emt 0:00:36]} 26. Qxe3 {[%emt 0:00:02]} Qc5 {[%emt 0:00:00]} 27. Qxc5 {[%emt 0:01:10]} Rxc5 {[%emt 0:00:01]} 28. d6 {[%emt 0:00:43]} Rxc2 {[%emt 0:00:48]} 29. d7 {[%emt 0:00:02]} Rd8 {[%emt 0:00:04]} 30. Rd6 {[%emt 0:00:30]} Rxd7 {[%emt 0:02:06]} 31. Rxd7 {[%emt 0:00:48]} Nxd7 {[%emt 0:00:04]} 32. Bxe4 {[%emt 0:00:01]} Rc4 {[%emt 0:00:53]} 33. Bc6 {[%emt 0:00:40]} Ne5 {[%emt 0:00:13]} 34. Bd5 {[%emt 0:00:12]} Rc5 {[%emt 0:00:02]} 35. Rd1 {[%emt 0:00:09]} Rxb5 {[%emt 0:00:29]} 36. Be4 {[%emt 0:00:07]} Kf8 {[%emt 0:00:42]} 37. Rd6 {[%emt 0:00:13]} Ke7 {[%emt 0:00:14]} 38. Rd2 {[%emt 0:00:01]} Rc5 {[%emt 0:00:08]} 39. Re2 {[%emt 0:00:06]} f6 {[%emt 0:00:05]} 40. Kf2 {[%emt 0:00:12]} a4 {[%emt 0:00:02]} 41. Ra2 {[%emt 0:00:03]} b5 {[%emt 0:00:01]} 42. Ke3 {[%emt 0:00:06]} Rc3+ {[%emt 0:00:02]} 43. Kf4 {[%emt 0:00:05]} a3 {[%emt 0:00:19]} 44. Bd5 {[%emt 0:00:06]} b4 {[%emt 0:00:07]} 45. h4 {[%emt 0:00:18]} Kd6 {[%emt 0:00:13]} 46. Be4 {[%emt 0:00:06]} Nd3+ {[%emt 0:00:09]} 47. Kg4 {[%emt 0:00:09]} Rc4 {[%emt 0:01:23]} 48. Kf3 {[%emt 0:00:28]} Ne5+ {[%emt 0:00:01]} 49. Kf4 {[%emt 0:00:03]} Kc5 {[%emt 0:00:01]} 50. Rd2 {[%emt 0:00:10]} b3 {[%emt 0:00:09]} 51. Rd5+ {[%emt 0:00:11]} Kb4 {[%emt 0:00:01]} 52. Rd8 {[%emt 0:00:04]} a2 {[%emt 0:00:06]} 53. Ra8 {[%emt 0:00:06]} Kc3 {[%emt 0:00:02]} 54. Ke3 {[%emt 0:00:05]} Kb2 {[%emt 0:00:06]} 55. Bd5 {[%emt 0:00:10]} Rc3+ {[%emt 0:00:05]} 56. Kd4 {[%emt 0:00:03]} Rd3+ {[%emt 0:00:04]} 57. Kc5 {[%emt 0:00:01]} Rxd5+ {[%emt 0:00:02]} 58. Kxd5 {[%emt 0:00:05]} a1=Q {[%emt 0:00:03]} 0-1

[Event "Czech Open Rapid G1 2024"]
[Site "Pardubice"]
[Date "2024.07.17"]
[Round "3.33"]
[White "Gu In-Jung"]
[Black "Novotny, Dominik"]
[Result "0-1"]
[Annotator "RC"]
[ECO "B12"]
[WhiteElo "1960"]
[BlackElo "1921"]
[PlyCount "58"]
[EventDate "2024.07.16"]
[EventType "swiss"]
[EventCountry "CZE"]
[SourceTitle "playchess.com"]
[Source "ChessBase"]
[SourceQuality "1"]
[TimeControl "1200+10"]

1. e4 {[%emt 0:00:01]} c6 {[%emt 0:00:01]} 2. d4 {[%emt 0:00:01]} d5 {[%emt 0:00:01]} 3. f3 {[%emt 0:00:01]} e6 {[%emt 0:00:02]} 4. Nc3 {[%emt 0:00:01]} Qb6 {[%emt 0:00:02]} 5. Qd3 {[%emt 0:02:26]} Nd7 {[%emt 0:01:11]} 6. Be3 {[%emt 0:01:25]} Qxb2 {[%emt 0:01:45]} 7. Rb1 {[%emt 0:00:02]} Qa3 {[%emt 0:00:04]} 8. Rb3 {[%emt 0:00:13]} Qa5 {[%emt 0:00:20]} 9. Bd2 {[%emt 0:04:25]} Qc7 {[%emt 0:00:56]} 10. Nh3 {[%emt 0:00:23]} dxe4 {[%emt 0:01:00]} 11. Nxe4 {[%emt 0:01:16]} Ngf6 {[%emt 0:02:16]} 12. Be2 {[%emt 0:01:03]} Nxe4 {[%emt 0:00:30]} 13. fxe4 {[%emt 0:01:02]} e5 {[%emt 0:00:58]} 14. c3 {[%emt 0:00:00]} Bd6 {[%emt 0:00:48]} 15. O-O {[%emt 0:00:15]} O-O {[%emt 0:03:28]} 16. Ng5 {[%emt 0:01:22]} Nf6 {[%emt 0:01:46]} 17. Qg3 {[%emt 0:03:17]} h6 {[%emt 0:03:27]} 18. Rxf6 {[%emt 0:01:53]} hxg5 {[%emt 0:00:13]} 19. Bxg5 {[%emt 0:01:54]} Be6 {[%emt 0:02:37]} 20. Bh6 {[%emt 0:00:10]} g6 {[%emt 0:00:10]} 21. c4 exd4 {[%emt 0:00:39]} 22. Qg5 {[%emt 0:02:22]} Bxh2+ {[%emt 0:00:24]} 23. Kh1 {[%emt 0:00:02]} Be5 {[%emt 0:00:05]} 24. Rg3 {[%emt 0:00:20]} Bxg3 {[%emt 0:00:24]} 25. Bh5 {[%emt 0:00:04]} Qe5 {[%emt 0:00:26]} 26. Rxg6+ {[%emt 0:00:14]} fxg6 {[%emt 0:00:05]} 27. Qxg6+ {[%emt 0:00:02]} Kh8 {[%emt 0:00:01]} 28. Bf3 {[%emt 0:00:06]} Bf7 {[%emt 0:00:36]} 29. Qg4 {[%emt 0:00:23]} Qh5+ {[%emt 0:00:01]} 0-1

[Event "Czech Open Rapid G1 2024"]
[Site "Pardubice"]
[Date "2024.07.17"]
[Round "3.34"]
[White "Flasar, Jaroslav"]
[Black "Park, Inchan"]
[Result "0-1"]
[Annotator "RC"]
[ECO "B03"]
[WhiteElo "2012"]
[BlackElo "1856"]
[PlyCount "68"]
[EventDate "2024.07.16"]
[EventType "swiss"]
[EventCountry "CZE"]
[SourceTitle "playchess.com"]
[Source "ChessBase"]
[SourceQuality "1"]
[TimeControl "1200+10"]

1. e4 {[%emt 0:00:03]} Nf6 {[%emt 0:00:03]} 2. e5 {[%emt 0:00:04]} Nd5 {[%emt 0:00:02]} 3. c4 {[%emt 0:00:03]} Nb6 {[%emt 0:00:01]} 4. d4 {[%emt 0:00:02]} d6 {[%emt 0:00:01]} 5. exd6 {[%emt 0:00:03]} cxd6 {[%emt 0:00:10]} 6. Nc3 {[%emt 0:00:08]} g6 {[%emt 0:00:00]} 7. Be3 {[%emt 0:00:19]} Bg7 {[%emt 0:00:00]} 8. Bd3 {[%emt 0:00:07]} O-O {[%emt 0:00:01]} 9. Nge2 {[%emt 0:00:01]} e5 {[%emt 0:00:19]} 10. d5 {[%emt 0:00:18]} N8d7 {[%emt 0:00:49]} 11. Nb5 {[%emt 0:00:17]} Nc5 {[%emt 0:00:11]} 12. Bxc5 {[%emt 0:00:03]} dxc5 {[%emt 0:00:02]} 13. Nec3 {[%emt 0:00:39]} a6 {[%emt 0:00:30]} 14. Na3 {[%emt 0:00:01]} f5 {[%emt 0:00:04]} 15. O-O {[%emt 0:00:11]} e4 {[%emt 0:00:22]} 16. Be2 {[%emt 0:00:02]} Qd6 {[%emt 0:00:27]} 17. f3 {[%emt 0:00:54]} exf3 {[%emt 0:01:30]} 18. Bxf3 {[%emt 0:00:13]} Nd7 {[%emt 0:00:01]} 19. Re1 {[%emt 0:01:10]} Ne5 {[%emt 0:00:09]} 20. Rb1 {[%emt 0:00:44]} Bd7 {[%emt 0:00:16]} 21. Qe2 {[%emt 0:01:07]} Rae8 {[%emt 0:00:34]} 22. Qf1 {[%emt 0:00:02]} g5 {[%emt 0:01:17]} 23. Nc2 {[%emt 0:02:10]} g4 {[%emt 0:00:48]} 24. Be2 {[%emt 0:00:01]} f4 {[%emt 0:00:55]} 25. Bd3 {[%emt 0:03:12]} f3 {[%emt 0:02:45]} 26. Ne4 {[%emt 0:00:14]} Qh6 {[%emt 0:00:10]} 27. Kh1 {[%emt 0:03:34]} fxg2+ {[%emt 0:01:33]} 28. Qxg2 {[%emt 0:00:04]} Nxd3 {[%emt 0:00:02]} 29. Re3 {[%emt 0:01:04]} Nf4 {[%emt 0:01:25]} 30. Qg3 {[%emt 0:00:02]} Bf5 {[%emt 0:00:47]} 31. Rbe1 {[%emt 0:00:18]} Nh5 {[%emt 0:00:51]} 32. Qg2 {[%emt 0:00:42]} Qg6 {[%emt 0:03:36]} 33. Na1 {[%emt 0:02:03]} Nf4 {[%emt 0:00:41]} 34. Qc2 {[%emt 0:00:19]} Bd4 {[%emt 0:00:20]} 0-1

[Event "Czech Open Rapid G1 2024"]
[Site "Pardubice"]
[Date "2024.07.17"]
[Round "3.35"]
[White "Eropunov, Gleb"]
[Black "Pejrimovsky, Tadeas Rubel"]
[Result "1-0"]
[Annotator "RC"]
[ECO "B21"]
[WhiteElo "2190"]
[BlackElo "1847"]
[PlyCount "91"]
[EventDate "2024.07.16"]
[EventType "swiss"]
[EventCountry "CZE"]
[SourceTitle "playchess.com"]
[Source "ChessBase"]
[SourceQuality "1"]
[TimeControl "1200+10"]

1. e4 {[%emt 0:00:02]} c5 {[%emt 0:00:01]} 2. d4 {[%emt 0:00:02]} cxd4 {[%emt 0:00:03]} 3. Qxd4 {[%emt 0:00:02]} Nc6 {[%emt 0:00:02]} 4. Qd3 {[%emt 0:00:02]} d6 {[%emt 0:00:35]} 5. Nc3 {[%emt 0:00:01]} Nf6 {[%emt 0:00:12]} 6. Nf3 {[%emt 0:00:04]} a6 {[%emt 0:00:26]} 7. Be2 {[%emt 0:00:05]} e6 {[%emt 0:00:07]} 8. Bf4 {[%emt 0:00:09]} Qc7 {[%emt 0:01:10]} 9. O-O-O {[%emt 0:00:28]} e5 {[%emt 0:02:18]} 10. Bg5 {[%emt 0:00:03]} Nb4 {[%emt 0:00:48]} 11. Qd2 {[%emt 0:03:43]} Be6 {[%emt 0:02:08]} 12. Bxf6 {[%emt 0:01:43]} gxf6 {[%emt 0:00:06]} 13. a3 {[%emt 0:01:12]} Na2+ {[%emt 0:01:29]} 14. Nxa2 {[%emt 0:00:05]} Bxa2 {[%emt 0:00:02]} 15. Nh4 {[%emt 0:02:26]} O-O-O {[%emt 0:03:06]} 16. Qe3 {[%emt 0:04:49]} h5 {[%emt 0:01:12]} 17. Nf5 {[%emt 0:00:24]} Be6 {[%emt 0:00:41]} 18. Qf3 {[%emt 0:00:54]} Kb8 {[%emt 0:00:42]} 19. Rd3 {[%emt 0:00:13]} Bc4 {[%emt 0:04:48]} 20. Rc3 {[%emt 0:00:24]} Bxe2 {[%emt 0:00:02]} 21. Qxe2 {[%emt 0:00:01]} Qa5 {[%emt 0:00:26]} 22. Rd1 {[%emt 0:02:50]} d5 {[%emt 0:00:35]} 23. exd5 {[%emt 0:00:25]} Rxd5 {[%emt 0:00:02]} 24. Rxd5 {[%emt 0:03:41]} Qxd5 {[%emt 0:00:01]} 25. Ne3 {[%emt 0:00:21]} Bh6 {[%emt 0:00:38]} 26. f3 {[%emt 0:00:10]} Qa2 {[%emt 0:00:50]} 27. Rb3 {[%emt 0:00:09]} Rd8 {[%emt 0:00:32]} 28. Rd3 {[%emt 0:00:01]} Rxd3 {[%emt 0:00:36]} 29. cxd3 {[%emt 0:00:18]} Qd5 {[%emt 0:00:55]} 30. Kb1 {[%emt 0:00:01]} Qc5 {[%emt 0:00:02]} 31. Nf5 {[%emt 0:00:13]} Qc1+ {[%emt 0:00:14]} 32. Ka2 {[%emt 0:00:01]} Bf8 {[%emt 0:00:23]} 33. Kb3 {[%emt 0:00:25]} Qc5 {[%emt 0:00:02]} 34. Qe4 {[%emt 0:00:07]} Qb5+ {[%emt 0:00:09]} 35. Ka2 {[%emt 0:00:03]} Qd7 {[%emt 0:00:11]} 36. h4 {[%emt 0:00:10]} Qe6+ {[%emt 0:00:01]} 37. Ka1 {[%emt 0:00:07]} Bc5 {[%emt 0:00:24]} 38. g4 {[%emt 0:00:07]} hxg4 {[%emt 0:00:08]} 39. fxg4 {[%emt 0:00:00]} Qb3 {[%emt 0:00:08]} 40. Qc4 {[%emt 0:00:13]} Qd1+ {[%emt 0:00:10]} 41. Ka2 {[%emt 0:00:01]} b6 {[%emt 0:00:01]} 42. h5 {[%emt 0:00:13]} Qd2 {[%emt 0:00:22]} 43. h6 {[%emt 0:00:10]} Bd4 {[%emt 0:00:01]} 44. Nxd4 {[%emt 0:00:04]} exd4 {[%emt 0:00:10]} 45. h7 {[%emt 0:00:10]} Qh2 {[%emt 0:00:10]} 46. Qxf7 {[%emt 0:00:10]} 1-0

[Event "Czech Open Rapid G1 2024"]
[Site "Pardubice"]
[Date "2024.07.17"]
[Round "3.36"]
[White "Stary, Simon"]
[Black "Mojzis, Jaroslav"]
[Result "0-1"]
[Annotator "RC"]
[ECO "C65"]
[WhiteElo "1836"]
[BlackElo "2068"]
[PlyCount "64"]
[EventDate "2024.07.16"]
[EventType "swiss"]
[EventCountry "CZE"]
[SourceTitle "playchess.com"]
[Source "ChessBase"]
[SourceQuality "1"]
[TimeControl "1200+10"]

1. e4 {[%emt 0:00:01]} e5 {[%emt 0:00:01]} 2. Nf3 {[%emt 0:00:02]} Nc6 {[%emt 0:00:06]} 3. Bb5 {[%emt 0:00:02]} Nf6 {[%emt 0:00:03]} 4. d3 {[%emt 0:00:01]} Bc5 {[%emt 0:00:03]} 5. c3 {[%emt 0:00:02]} d6 {[%emt 0:00:03]} 6. O-O {[%emt 0:00:03]} O-O {[%emt 0:00:03]} 7. Nbd2 {[%emt 0:00:02]} Bb6 {[%emt 0:00:52]} 8. Re1 {[%emt 0:00:07]} Ne7 {[%emt 0:00:05]} 9. Nf1 {[%emt 0:00:03]} c6 {[%emt 0:00:04]} 10. Ba4 {[%emt 0:00:01]} Re8 {[%emt 0:00:17]} 11. Ng3 {[%emt 0:00:03]} h6 {[%emt 0:00:19]} 12. d4 {[%emt 0:00:14]} Bc7 {[%emt 0:02:24]} 13. h3 {[%emt 0:00:18]} Be6 {[%emt 0:00:27]} 14. Be3 {[%emt 0:00:23]} exd4 {[%emt 0:01:17]} 15. cxd4 {[%emt 0:01:18]} d5 {[%emt 0:00:24]} 16. e5 {[%emt 0:00:08]} Ne4 {[%emt 0:00:04]} 17. Nh5 {[%emt 0:01:32]} Qd7 {[%emt 0:00:57]} 18. Bxh6 {[%emt 0:00:29]} Bxh3 {[%emt 0:00:23]} 19. Bxg7 {[%emt 0:00:32]} Qg4 {[%emt 0:01:22]} 20. Nh4 {[%emt 0:00:59]} Qxh4 {[%emt 0:01:01]} 21. gxh3 {[%emt 0:00:18]} Qxf2+ {[%emt 0:00:55]} 22. Kh1 {[%emt 0:00:06]} Nf5 {[%emt 0:03:25]} 23. Rxe4 {[%emt 0:00:33]} dxe4 {[%emt 0:03:02]} 24. Qg4 {[%emt 0:02:45]} Re6 {[%emt 0:00:04]} 25. Bf6+ {[%emt 0:00:36]} Kf8 {[%emt 0:02:03]} 26. Qxe4 {[%emt 0:01:45]} Rxf6 {[%emt 0:00:44]} 27. Rg1 {[%emt 0:01:39]} Rg6 {[%emt 0:00:26]} 28. Rxg6 {[%emt 0:00:47]} fxg6 {[%emt 0:00:03]} 29. Qf4 {[%emt 0:00:13]} Qxf4 {[%emt 0:00:23]} 30. Nxf4 {[%emt 0:00:02]} Bb6 {[%emt 0:00:53]} 31. Nxg6+ {[%emt 0:00:21]} Kf7 {[%emt 0:00:12]} 32. Nf4 {[%emt 0:00:12]} Nxd4 {[%emt 0:00:26]} 0-1

[Event "Czech Open Rapid G1 2024"]
[Site "Pardubice"]
[Date "2024.07.18"]
[Round "4.1"]
[White "Navara, David"]
[Black "Neuman, Petr"]
[Result "1-0"]
[Annotator "TA"]
[ECO "B30"]
[WhiteElo "2682"]
[BlackElo "2441"]
[PlyCount "67"]
[EventDate "2024.07.16"]
[EventType "swiss"]
[EventCountry "CZE"]
[SourceTitle "playchess.com"]
[Source "ChessBase"]
[SourceQuality "1"]
[TimeControl "1200+10"]

{[%evp 20,67,24,25,36,10,12,0,0,0,0,0,0,11,11,20,44,29,41,54,74,77,63,62,72,69,72,75,110,37,32,40,141,107,433,431,486,479,1097,1097,7162,3056,29974,3073,5297,29975,29978,29979,29979,29976]} 1. e4 {[%emt 0:00:01]} c5 {[%emt 0:00:03]} 2. Nf3 {[%emt 0:00:03]} Nc6 {[%emt 0:00:03]} 3. Nc3 {[%emt 0:00:02]} e5 {[%emt 0:00:06]} 4. Bc4 {[%emt 0:00:02]} Be7 {[%emt 0:00:15]} 5. d3 {[%emt 0:00:15]} d6 {[%emt 0:00:05]} 6. O-O {[%emt 0:00:10]} Nf6 {[%emt 0:00:02]} 7. Ng5 {[%emt 0:00:03]} O-O {[%emt 0:00:03]} 8. f4 {[%emt 0:00:02]} exf4 {[%emt 0:00:02]} 9. Bxf4 {[%emt 0:00:03]} h6 {[%emt 0:00:03]} 10. Nf3 {[%emt 0:00:03]} Be6 {[%emt 0:00:04]} 11. Nd5 {[%emt 0:00:15]} Qd7 {[%emt 0:00:05]} 12. Qd2 {[%emt 0:01:32]} Rae8 {[%emt 0:00:05]} 13. a3 {[%emt 0:02:57]} Bd8 {[%emt 0:00:08] The position is equal.} 14. b4 {[%emt 0:01:15]} Bxd5 {[%emt 0:05:55]} 15. exd5 {[%emt 0:00:07]} Nd4 {[%emt 0:00:33]} 16. Nxd4 {[%emt 0:02:44]} cxd4 {[%emt 0:00:02]} 17. a4 $1 {[%emt 0:00:02]} a6 {[%emt 0:00:14] Inhibits Bb5.} 18. b5 $1 {[%emt 0:00:02]} Nh5 {[%emt 0:02:23]} 19. bxa6 {[%emt 0:00:44]} bxa6 {[%emt 0:00:02]} 20. Bxa6 {[%emt 0:01:04] And now Bb5 would win.} Nxf4 {[%emt 0:00:02]} 21. Qxf4 {[%emt 0:01:37][%cal Oa6b5] aiming for Bb5!} Bg5 {[%emt 0:01:08] Black is weak on the light squares} 22. Bb5 {[%emt 0:00:02]} (22. Qxd4 $2 Be3+ $19) 22... Qc7 {[%emt 0:00:49]} 23. Qg4 {[%emt 0:00:06] White is more active.} (23. Qxd4 $2 Be3+ $19) 23... Re5 {[%emt 0:00:39]} 24. Bc6 {[%emt 0:00:38]} (24. Qxd4 $2 Be3+ $19 (24... Qxc2 25. Kh1 $14) (24... Qxc2 25. Kh1 $14)) ({White should play} 24. a5 $16) 24... Be3+ {[%emt 0:00:15]} 25. Kh1 {[%emt 0:00:02]} Qa5 {[%emt 0:00:19] [#]} (25... f5 $1 $14 26. Qe2 Qa5) 26. Qd7 $1 $16 {[%emt 0:00:32]} Qd2 $2 {[%emt 0:01:10][%mdl 8192] [#] This costs Black the game.} (26... Rg5 $16) 27. a5 $1 $18 {[%emt 0:01:25]} ({Weaker is} 27. Qxd6 Rg5 28. g3 Qxc2 $14) 27... Rg5 {[%emt 0:03:43]} 28. Qh3 {[%emt 0:00:06]} Rb8 {[%emt 0:00:39]} (28... g6 $142 29. a6 (29. Qxh6 $2 Qxg2#) 29... h5) 29. a6 {[%emt 0:00:39]} Rb2 {[%emt 0:00:01]} 30. a7 {[%emt 0:02:10]} Rxc2 {[%emt 0:00:02]} 31. a8=Q+ {[%emt 0:00:04]} (31. a8=B {leads to mate.} Qxg2+ 32. Qxg2 Rgxg2) (31. Bd7 $142 Qxg2+ 32. Qxg2 Rgxg2 33. a8=Q+ (33. a8=B $2 Rxh2#) 33... Kh7 34. Bf5+ (34. Rxf7 $2 Rxh2#) 34... g6 35. Bxg6+ Kxg6 36. Qg8+ Kh5 37. Qxg2 (37. Qxf7+ Kh4 $18) 37... Rxg2 38. Kxg2) 31... Kh7 {[%emt 0:00:02]} 32. Bd7 {[%emt 0:02:24]} Qxg2+ {[%emt 0:01:58]} 33. Qxg2 {[%emt 0:00:03]} Rgxg2 {[%emt 0:00:02]} 34. Bf5+ {[%emt 0:00:06] Weighted Error Value: White=0.06 (flawless) /Black=0.61.  Loses game:     	---       	Black=1      Mistake:       	White=1     	Black=2      Inaccurate:     	White=1     	Black=2      OK:         	White=4     	Black=5      Best:        	White=4     	---        Strong:       	White=4     	---} (34. Rxf7 $2 Rxh2#) 1-0

[Event "Czech Open Rapid G1 2024"]
[Site "Pardubice"]
[Date "2024.07.18"]
[Round "4.2"]
[White "Movsesian, Sergei"]
[Black "Nisipeanu, Liviu-Dieter"]
[Result "1/2-1/2"]
[Annotator "TA"]
[ECO "E05"]
[WhiteElo "2618"]
[BlackElo "2583"]
[PlyCount "25"]
[EventDate "2024.07.16"]
[EventType "swiss"]
[EventCountry "CZE"]
[SourceTitle "playchess.com"]
[Source "ChessBase"]
[SourceQuality "1"]
[TimeControl "1200+10"]

{[%evp 11,25,19,37,-29,14,0,0,-9,7,0,0,0,23,18,26,28]} 1. d4 {[%emt 0:00:02]} Nf6 {[%emt 0:00:02]} 2. Nf3 {[%emt 0:00:02]} d5 {[%emt 0:00:04]} 3. c4 {[%emt 0:00:01]} e6 {[%emt 0:00:01]} 4. g3 {[%emt 0:00:01]} Be7 {[%emt 0:00:03]} 5. Bg2 {[%emt 0:00:02]} O-O {[%emt 0:00:03]} 6. O-O {[%emt 0:00:02]} dxc4 {[%emt 0:00:01]} 7. a4 {[%emt 0:00:08]} ({White should try} 7. Ne5 $14) 7... Bd7 {[%emt 0:00:24]} 8. Qc2 {[%emt 0:00:03]} Bc6 {[%emt 0:00:04]} 9. Qxc4 {[%emt 0:00:02] The position is equal.} a5 {[%emt 0:00:07]} 10. Nc3 {[%emt 0:00:13]} Na6 {[%emt 0:00:18]} 11. Bg5 {[%emt 0:00:16]} Bxf3 {[%emt 0:00:39]} 12. Bxf3 {[%emt 0:00:02][%cal Og5f6] [#] Threatens to win with Bxf6!} c6 {[%emt 0:00:01]} 13. Rfd1 {[%emt 0:00:20] Not much happened in this game.   Weighted Error Value: White=0.24 (precise) /Black=0.14 (very precise) .  Inaccurate:     	---       	Black=1      OK:         	White=1     	Black=1      Best:        	---       	Black=1} 1/2-1/2